bitfinex/quotes_ETHUSD_20250519
["timestamp","ask_amount","ask_price","bid_price","bid_amount"]
[1747613882698,0.93775936,2472.2,2471.5,0.55]
[1747613882876,4.98282015,2472.2,2471.6,4.04587942]
[1747613883196,4.04475224,2472.4,2471.8,4.04549423]
[1747613883399,0.4006,2473.1,2471.6,4.04596212]
[1747613883567,0.4006,2473.1,2471.7,0.45959621]
[1747613883568,12.5206,2473.1,2471.7,0.45959621]
[1747613883898,4.04557525,2471.9,2471.7,12.126]
[1747613884101,4.04563476,2471.8,2471.7,12.126]
[1747613884482,4.04541018,2472.0,2471.7,12.126]
[1747613884686,4.04368884,2473.0,2471.8,0.55]
[1747613885002,4.0432396,2473.3,2472.2,4.04484903]
[1747613885169,4.04516047,2472.1,2471.9,1.2857]
[1747613885371,4.04530744,2472.0,2471.9,13.4087]
[1747613885565,4.04612583,2471.5,2471.3,13.4087]
[1747613885778,4.04498017,2472.2,2471.3,13.4087]
[1747613886007,4.04481656,2472.3,2471.3,13.4087]
[1747613886165,4.04476185,2472.4,2471.3,14.6103628]
[1747613886365,16.15802635,2472.8,2471.4,0.55]
[1747613886606,16.15802635,2472.8,2471.3,14.6103628]
[1747613886607,8.0,2472.7,2471.3,14.6103628]
[1747613886803,4.04548983,2471.9,2471.3,18.65676327]
[1747613886979,4.04432581,2472.6,2471.3,13.4087]
[1747613886980,4.04575532,2471.8,2471.3,13.4087]
[1747613887176,4.0455835,2471.9,2471.3,13.4087]
[1747613887501,12.113,2472.9,2471.3,1.2857]
[1747613887698,8.0,2472.8,2471.4,12.121]
[1747613887998,8.0,2472.5,2471.4,12.121]
[1747613888199,4.04574689,2471.8,2471.4,12.121]
[1747613888422,4.04628955,2471.4,2471.3,1.2857]
[1747613888569,4.04678078,2471.1,2471.0,12.121]
[1747613888889,4.04635868,2471.4,2470.5,17.476]
[1747613889086,4.04609318,2471.6,2470.5,17.476]
[1747613889302,4.04631091,2471.4,2470.8,0.55]
[1747613889603,4.04620944,2471.5,2470.8,0.55]
[1747613889802,4.04594283,2471.7,2471.1,0.55]
[1747613890002,0.4006,2472.1,2471.2,12.121]
[1747613890300,4.04714491,2470.9,2470.8,12.121]
[1747613890599,4.04699809,2471.0,2470.8,12.121]
[1747613890779,4.04594093,2471.7,2470.8,12.121]
[1747613890780,4.04710834,2470.9,2470.8,12.121]
[1747613890966,4.04682045,2471.1,2470.8,12.121]
[1747613891202,0.4006,2472.1,2470.9,4.59707357]
[1747613891418,0.4006,2472.5,2471.3,1.3335]
[1747613891565,4.04367165,2473.0,2471.6,0.55]
[1747613891765,4.04367165,2473.0,2472.3,4.04472649]
[1747613892000,4.04367165,2473.0,2471.9,0.55]
[1747613892001,4.04407551,2472.8,2472.2,4.04485016]
[1747613892192,0.93462471,2473.4,2472.3,1.2582]
[1747613892406,4.04465296,2472.4,2472.3,1.2582]
[1747613892577,4.04481656,2472.3,2472.2,12.121]
[1747613893215,4.04318117,2473.3,2472.2,12.121]
[1747613893385,4.04289285,2473.5,2472.3,0.55]
[1747613893571,4.04360717,2473.1,2472.5,4.04442124]
[1747613893770,4.04342011,2473.2,2472.6,1.2478]
[1747613894007,12.5076,2473.6,2472.6,1.2478]
[1747613894213,0.4006,2473.6,2472.6,1.2478]
[1747613894395,4.04563476,2471.8,2471.7,17.474]
[1747613894678,4.04563476,2471.8,2470.2,0.41811841]
[1747613894679,4.04759977,2470.6,2470.2,0.41811841]
[1747613895067,0.71468058,2471.3,2470.2,12.53711841]
[1747613895267,4.0447058,2472.4,2470.6,1.3318]
[1747613895268,20.5082,2471.8,2470.6,1.3318]
[1747613895498,12.5082,2471.8,2470.7,4.08779086]
[1747613895804,4.0480286,2470.4,2469.9,13.4019]
[1747613896104,12.103,2471.2,2469.9,1.2829]
[1747613896306,4.04802048,2470.4,2470.0,12.119]
[1747613896478,4.04778176,2470.5,2470.0,12.119]
[1747613896679,0.4052,2471.0,2470.0,12.119]
[1747613896883,0.4052,2471.0,2470.0,15.20629]
[1747613896884,4.04788991,2470.5,2470.0,15.20629]
[1747613897093,4.04746086,2470.7,2470.0,15.20629]
[1747613897299,4.04769751,2470.6,2470.0,15.20629]
[1747613897497,4.04683222,2471.1,2470.0,15.20629]
[1747613897498,4.04710834,2470.9,2470.0,15.20629]
[1747613897699,4.04710834,2470.9,2470.0,12.119]
[1747613897922,4.04835529,2470.2,2470.0,12.119]
[1747613898117,4.04799761,2470.4,2470.0,12.119]
[1747613898348,4.04706523,2471.0,2470.0,12.119]
[1747613898823,0.63143942,2472.3,2470.1,1.2148]
[1747613898824,12.102,2471.6,2470.1,1.2148]
[1747613899000,4.04788214,2470.5,2470.1,13.3338]
[1747613899203,0.29695825,2471.3,2470.1,13.3338]
[1747613899401,4.04796163,2470.4,2470.1,13.3338]
[1747613899629,4.0482552,2470.2,2469.8,17.471]
[1747613899826,4.04923874,2469.6,2469.5,12.121]
[1747613899994,4.04973069,2469.3,2469.2,1.2793]
[1747613900827,4.05055087,2468.8,2468.7,0.31039892]
[1747613901027,4.05071495,2468.7,2468.6,1.2574]
[1747613901616,4.05061123,2468.8,2468.6,1.2574]
[1747613901930,4.05061364,2468.8,2468.6,1.2574]
[1747613902147,4.05043191,2468.9,2468.6,1.2574]
[1747613902355,4.0498947,2469.2,2468.6,1.2574]
[1747613902648,4.05071495,2468.7,2468.6,1.2574]
[1747613903146,4.05165419,2468.2,2468.1,1.2574]
[1747613903447,4.05165419,2468.2,2468.1,12.125]
[1747613903621,4.05139523,2468.3,2468.1,12.125]
[1747613903824,20.104,2469.3,2468.0,0.31039892]
[1747613904057,4.05169968,2468.1,2467.7,1.2574]
[1747613904215,0.4052,2468.2,2467.4,0.66666667]
[1747613904408,4.04956669,2469.4,2467.6,4.05248465]
[1747613904711,4.05120792,2468.4,2467.8,0.55]
[1747613904911,4.05059607,2468.8,2468.0,0.55]
[1747613905149,2.01963049,2472.2,2468.0,0.55]
[1747613905150,0.4052,2470.2,2468.7,0.55]
[1747613905334,4.04809056,2470.4,2469.1,0.55]
[1747613905524,1.25973765,2470.7,2469.4,0.55]
[1747613905725,4.04821507,2470.3,2469.4,2.60484894]
[1747613905911,0.30810232,2470.6,2469.5,12.107]
[1747613906111,1.25973765,2470.7,2469.6,0.04048621]
[1747613906343,0.30476328,2470.6,2469.5,12.107]
[1747613906543,12.106,2470.9,2469.5,12.107]
[1747613906748,4.04767046,2470.6,2469.7,4.04907077]
[1747613906919,0.4052,2471.1,2469.8,0.40895585]
[1747613906920,4.04715085,2470.9,2469.8,0.40895585]
[1747613907246,4.04811163,2470.3,2469.9,12.107]
[1747613907449,0.70723134,2471.1,2469.9,12.107]
[1747613907611,4.04794187,2470.4,2469.9,12.107]
[1747613907819,4.04721212,2470.9,2469.9,12.107]
[1747613908014,4.04907478,2469.7,2469.6,1.3227]
[1747613908313,4.04859378,2470.0,2469.2,5.33268517]
[1747613908512,4.04810647,2470.3,2469.2,1.2198833]
[1747613908711,4.04792815,2470.4,2469.3,1.2828]
[1747613908944,4.04810238,2470.3,2469.9,1.2828]
[1747613909149,4.04810238,2470.3,2470.0,12.106]
[1747613909447,16.15130218,2470.8,2470.1,12.106]
[1747613909652,0.4052,2471.6,2470.1,13.44488]
[1747613909855,4.04588138,2471.7,2470.3,1.2497]
[1747613910154,4.04612583,2471.5,2470.3,1.2497]
[1747613910358,4.04792746,2470.4,2470.3,1.2497]
[1747613910544,4.0482552,2470.2,2470.1,29.589]
[1747613910877,4.04874691,2469.9,2469.8,12.106]
[1747613911161,4.05022276,2469.0,2468.9,12.106]
[1747613911317,4.05038681,2468.9,2468.3,17.483]
[1747613911522,4.05104314,2468.5,2468.2,0.41811841]
[1747613912042,0.4052,2469.6,2468.2,4.05146422]
[1747613912217,4.05055337,2468.8,2468.2,1.61564642]
[1747613912418,12.1,2469.5,2468.3,0.04051083]
[1747613912419,4.05036436,2469.0,2468.3,0.04051083]
[1747613912752,0.4052,2469.6,2468.2,1.61564642]
[1747613912753,0.4052,2469.6,2468.4,1.2374]
[1747613912957,0.30697955,2469.6,2468.4,1.2374]
[1747613913153,4.04956669,2469.4,2468.4,1.2374]
[1747613913457,4.04916804,2469.7,2469.0,4.05010119]
[1747613913758,4.45307294,2470.5,2469.2,5.2872555]
[1747613913961,0.30667609,2470.8,2469.4,1.2374]
[1747613914253,8.0,2471.0,2469.4,1.2374]
[1747613914453,1.25973765,2471.1,2469.4,1.2374]
[1747613914754,4.04742639,2470.8,2469.4,2.0900049]
[1747613914940,4.04840381,2470.2,2469.5,4.04940079]
[1747613915251,4.04798002,2470.4,2469.5,1.3032]
[1747613915457,4.04805193,2470.4,2469.5,1.3032]
[1747613915624,4.04809132,2470.3,2469.7,4.04903142]
[1747613915823,4.04779316,2470.5,2469.7,4.04903142]
[1747613916019,4.04793785,2470.4,2469.6,16.37079708]
[1747613916252,4.04769592,2470.6,2470.1,1.2751]
[1747613916460,4.04736757,2470.8,2470.2,4.04822536]
[1747613916656,4.04664427,2471.2,2470.6,4.04753523]
[1747613916843,12.098,2471.9,2470.8,1.2751]
[1747613917186,0.3017995,2471.9,2470.8,1.2751]
[1747613917360,4.04704094,2471.0,2470.9,12.106]
[1747613917656,4.04759977,2470.6,2470.5,17.484]
[1747613918159,4.0470021,2471.0,2470.1,1.2751]
[1747613918321,4.04753999,2470.7,2470.1,2.61311]
[1747613918521,4.0462117,2471.5,2470.2,12.47341834]
[1747613918742,4.35180539,2471.6,2470.3,13.68842762]
[1747613918942,16.54547225,2472.1,2470.9,1.2455]
[1747613919141,4.04530744,2472.0,2470.9,5.29255648]
[1747613919353,4.04655169,2471.3,2470.9,1.2455]
[1747613919555,4.04612583,2471.5,2471.0,0.33783189]
[1747613919742,4.04612583,2471.5,2471.1,12.105]
[1747613919945,4.04487397,2472.3,2471.1,12.105]
[1747613919946,4.04597707,2471.6,2471.2,0.04046344]
[1747613920254,4.04629907,2471.4,2471.3,12.44079088]
[1747613920658,4.04629907,2471.4,2471.3,0.33779088]
[1747613920858,4.04629907,2471.4,2471.3,12.44079088]
[1747613921265,4.04629907,2471.4,2471.3,0.33779088]
[1747613921761,4.04547109,2471.9,2471.3,0.33779088]
[1747613921921,4.04628114,2471.5,2471.3,0.33779088]
[1747613922122,4.04628955,2471.4,2471.3,0.33779088]
[1747613923169,4.04678078,2471.1,2471.0,12.103]
[1747613923666,4.04667267,2471.2,2471.0,12.103]
[1747613923973,16.13436048,2472.0,2471.1,1.2269]
[1747613924142,4.04639908,2471.4,2471.1,1.2269]
[1747613924327,4.04661702,2471.2,2471.1,1.2269]
[1747613924927,4.04645386,2471.3,2471.1,1.2269]
[1747613925164,4.04661702,2471.2,2470.9,29.584]
[1747613925373,4.04588222,2471.7,2470.9,29.584]
[1747613925534,4.04588222,2471.7,2471.0,3.091]
[1747613925874,4.04630087,2471.4,2471.0,3.091]
[1747613926081,4.0451438,2472.1,2470.9,29.584]
[1747613926232,4.04694455,2471.0,2470.9,29.584]
[1747613926570,4.0464367,2471.4,2470.9,29.584]
[1747613926775,4.04448985,2472.5,2470.9,29.584]
[1747613926976,0.55,2473.4,2470.9,29.584]
[1747613926977,4.0451438,2472.1,2470.9,17.482]
[1747613927205,4.04678078,2471.1,2471.0,12.101]
[1747613927682,4.04530744,2472.0,2471.0,15.1919]
[1747613927831,0.4068,2472.6,2471.2,1.326]
[1747613928032,12.083,2472.8,2471.2,1.326]
[1747613928269,16.12713442,2472.8,2471.2,1.326]
[1747613928491,12.083,2472.8,2471.3,12.101]
[1747613928650,12.083,2472.8,2471.2,1.326]
[1747613928651,12.38727088,2472.8,2471.2,1.326]
[1747613928839,4.04620681,2471.5,2471.2,1.326]
[1747613929044,4.04597368,2471.6,2471.2,1.326]
[1747613929251,4.04582811,2471.7,2471.2,1.326]
[1747613929446,4.04615491,2471.5,2471.2,2.97779]
[1747613929650,4.04516035,2472.1,2471.2,2.97779]
[1747613929866,4.04465296,2472.4,2471.2,2.97779]
[1747613930062,4.04432581,2472.6,2471.2,2.97779]
[1747613930268,4.04522362,2472.1,2471.3,0.37824786]
[1747613930469,4.04522362,2472.1,2471.4,0.33777721]
[1747613930789,4.04575896,2471.8,2471.4,0.33777721]
[1747613930987,4.34827061,2472.8,2471.5,12.099]
[1747613931191,4.04540274,2472.0,2471.6,0.33774988]
[1747613931349,4.04556605,2471.9,2471.7,12.099]
[1747613931691,4.04547109,2471.9,2471.8,0.33772255]
[1747613931977,4.04547109,2471.9,2471.8,12.43672255]
[1747613932181,4.04547109,2471.9,2471.8,0.33772255]
[1747613932845,22.41647109,2471.9,2471.8,0.33772255]
[1747613933043,22.82327109,2471.9,2471.8,0.33772255]
[1747613933264,4.04776361,2470.5,2470.4,0.31039892]
[1747613933682,0.4068,2471.6,2470.5,1.2703]
[1747613933861,4.04547109,2471.9,2470.5,5.31799209]
[1747613934056,0.30624314,2472.0,2470.6,4.61036124]
[1747613934282,4.04661702,2471.2,2471.1,1.2703]
[1747613934791,4.0471441,2470.9,2470.7,1.2217]
[1747613934995,4.04697645,2471.0,2470.8,12.073]
[1747613935293,4.04686944,2471.1,2470.8,12.073]
[1747613935502,4.04639287,2471.4,2470.9,1.32947]
[1747613935790,4.04563476,2471.8,2470.9,1.32947]
[1747613936020,4.04481656,2472.3,2471.0,1.309]
[1747613936192,4.04555782,2471.9,2471.2,4.04646384]
[1747613936409,4.04612583,2471.5,2471.4,1.309]
[1747613936556,4.04448938,2472.5,2471.4,1.309]
[1747613936557,0.30430201,2472.3,2471.4,1.309]
[1747613936757,4.04573088,2471.8,2471.4,1.34945814]
[1747613936977,4.04517418,2472.1,2471.5,12.073]
[1747613937189,4.04604523,2471.6,2471.5,12.073]
[1747613937502,4.04585613,2471.7,2471.4,1.309]
[1747613937705,4.04556736,2471.9,2471.5,12.073]
[1747613937887,4.04541413,2472.0,2471.5,12.073]
[1747613938065,4.04547832,2471.9,2471.5,12.073]
[1747613938468,4.04612583,2471.5,2471.4,2.71346942]
[1747613938763,4.04612583,2471.5,2471.4,13.381]
[1747613939394,4.04598694,2471.6,2471.4,13.381]
[1747613939709,4.34427606,2472.6,2471.4,16.4663]
[1747613939910,4.0448413,2472.3,2471.4,13.381]
[1747613940073,4.34427606,2472.6,2471.4,13.381]
[1747613940270,4.04486106,2472.3,2471.4,13.381]
[1747613940489,16.40927874,2472.6,2471.4,1.309]
[1747613940692,4.04612583,2471.5,2471.4,13.381]
[1747613941014,4.04607449,2471.6,2471.4,13.381]
[1747613941170,4.04607449,2471.6,2470.7,12.064]
[1747613941171,4.04628955,2471.4,2471.0,1.218]
[1747613941366,4.04579843,2471.7,2470.6,13.29]
[1747613941619,12.063,2471.8,2470.6,13.29]
[1747613941620,4.04743594,2470.7,2470.6,13.29]
[1747613941765,4.04707189,2471.0,2470.6,16.39703989]
[1747613941966,4.04574617,2471.8,2470.7,0.04046974]
[1747613942196,4.04565133,2471.8,2471.3,5.3350318]
[1747613942439,4.04561969,2471.9,2471.4,12.072]
[1747613942620,4.04460097,2472.5,2471.9,4.0453864]
[1747613942825,12.4678,2473.1,2472.0,0.04044771]
[1747613943054,4.04476986,2472.4,2471.9,1.3341]
[1747613943207,12.4678,2473.1,2471.9,1.3341]
[1747613943208,4.04367165,2473.0,2472.0,0.53797085]
[1747613943410,4.04454918,2472.5,2472.1,12.072]
[1747613943654,4.04466213,2472.4,2472.1,12.072]
[1747613943859,0.71384716,2473.1,2471.6,17.47]
[1747613944058,0.71384716,2473.1,2471.7,1.229]
[1747613944362,4.04453009,2472.5,2471.7,1.229]
[1747613944514,4.04453009,2472.5,2471.8,5.91548822]
[1747613944515,4.0445649,2472.5,2471.8,5.91548822]
[1747613944712,4.0445649,2472.5,2471.8,1.8699]
[1747613945030,4.04420994,2472.7,2472.0,5.27940744]
[1747613945031,4.04426302,2472.7,2472.0,5.27940744]
[1747613945235,0.30664657,2473.2,2472.1,12.071]
[1747613945432,4.0442691,2472.7,2472.1,16.11608291]
[1747613945619,4.04344587,2473.2,2472.1,13.80601829]
[1747613945825,4.04412149,2472.8,2472.2,4.04488773]
[1747613946241,4.04417182,2472.7,2472.2,4.04488773]
[1747613946417,4.04417182,2472.7,2472.1,17.85108671]
[1747613946746,4.04417613,2472.7,2472.2,4.04489748]
[1747613946953,4.04417613,2472.7,2472.3,1.78509158]
[1747613947257,4.04433353,2472.6,2472.3,1.78509158]
[1747613947413,4.04367165,2473.0,2472.3,1.78509158]
[1747613947753,4.04395855,2472.9,2472.4,12.069]
[1747613947953,4.04344576,2473.2,2472.5,1.2945]
[1747613948135,4.04355244,2473.1,2472.5,1.2945]
[1747613948332,16.38907845,2473.8,2472.6,12.069]
[1747613948333,4.04262308,2473.7,2472.6,12.069]
[1747613948651,12.34670032,2473.8,2472.6,12.069]
[1747613948652,4.04416225,2472.7,2472.6,12.069]
[1747613948959,4.04416225,2472.7,2472.5,1.2945]
[1747613949246,4.04403039,2472.8,2472.6,12.069]
[1747613949448,4.04415911,2472.8,2472.6,12.069]
[1747613949746,4.04416225,2472.7,2472.6,12.069]
[1747613949954,4.04432581,2472.6,2472.5,1.2945]
[1747613950115,4.04427441,2472.7,2472.6,12.068]
[1747613950549,4.04401996,2472.8,2472.6,12.068]
[1747613950550,4.04406988,2472.8,2472.6,12.068]
[1747613950713,4.04331046,2473.3,2472.6,12.068]
[1747613950912,4.04367614,2473.0,2472.6,12.068]
[1747613951112,4.04383517,2472.9,2472.6,12.068]
[1747613951351,4.0439987,2472.8,2472.7,12.068]
[1747613951552,4.0430177,2473.4,2472.7,12.068]
[1747613951846,4.04290386,2473.5,2472.8,12.068]
[1747613951847,4.04354954,2473.1,2472.8,12.068]
[1747613952052,8.4068,2473.9,2472.8,12.068]
[1747613952255,4.04270837,2473.6,2473.0,1.2234]
[1747613952557,4.04285842,2473.5,2473.1,2.27725098]
[1747613952742,4.04201548,2474.1,2473.1,10.27725098]
[1747613953055,4.04171045,2474.2,2473.2,12.068]
[1747613953257,4.04122044,2474.5,2473.2,12.068]
[1747613953557,4.04163337,2474.3,2473.0,5.26703011]
[1747613953714,0.4068,2474.8,2473.4,1.304]
[1747613953914,4.04169518,2474.3,2473.4,1.304]
[1747613954152,4.04189935,2474.1,2473.5,4.04276891]
[1747613954324,4.04056729,2474.9,2473.9,1.304]
[1747613954656,4.04203718,2474.0,2473.9,1.304]
[1747613954876,4.04269081,2473.6,2473.5,12.067]
[1747613955181,4.04262009,2473.7,2473.5,12.067]
[1747613955356,0.4102,2474.5,2473.5,12.067]
[1747613955555,4.04268155,2473.7,2473.5,12.067]
[1747613955875,4.04280257,2473.6,2473.4,12.067]
[1747613956083,4.0415471,2474.3,2473.4,12.067]
[1747613956550,8.0,2474.2,2473.2,1.304]
[1747613956752,4.04295666,2473.5,2473.3,12.065]
[1747613957673,4.04367165,2473.0,2472.9,17.465]
[1747613957978,4.04252738,2473.7,2472.9,17.465]
[1747613958167,4.04367165,2473.0,2472.9,17.465]
[1747613958370,0.4102,2473.8,2472.9,17.465]
[1747613958570,4.04342437,2473.2,2472.9,17.465]
[1747613958971,4.04337794,2473.2,2472.9,17.465]
[1747613959167,4.04367165,2473.0,2472.9,17.465]
[1747613959370,4.04432581,2472.6,2472.5,12.065]
[1747613960098,12.026,2473.7,2472.5,17.31593462]
[1747613960300,12.4362,2473.8,2472.6,1.3216]
[1747613960675,4.04351974,2473.1,2472.7,12.065]
[1747613960882,4.04269081,2473.6,2472.7,12.065]
[1747613961078,4.04281035,2473.6,2472.8,0.04043772]
[1747613961321,4.04299079,2473.5,2472.8,4.04383835]
[1747613961607,4.04222372,2473.9,2472.7,17.44776137]
[1747613961608,4.04274996,2473.6,2472.7,13.40366]
[1747613961900,4.04314041,2473.4,2472.8,4.04392526]
[1747613962089,4.04290005,2473.5,2472.8,4.0439987]
[1747613962290,6.12,2474.0,2473.3,1.3177]
[1747613962490,4.04261267,2473.7,2473.3,1.3177]
[1747613962863,4.04259993,2473.7,2473.3,1.3177]
[1747613963304,16.06388307,2474.1,2473.3,1.3177]
[1747613963507,16.06388307,2474.1,2472.9,1.74476587]
[1747613963508,4.04298189,2473.5,2472.8,1.3453]
[1747613963813,4.04310445,2473.4,2472.9,4.04383517]
[1747613963975,4.04236397,2473.8,2472.8,13.4103]
[1747613964169,4.04347172,2473.2,2472.8,13.4103]
[1747613964479,4.04369655,2473.0,2472.8,13.4103]
[1747613964686,4.04358281,2473.1,2472.8,13.4103]
[1747613965384,10.16208539,2474.0,2472.9,0.04043438]
[1747613965589,4.04179837,2474.2,2472.9,8.04043438]
[1747613965908,4.04223235,2473.9,2473.2,4.04323149]
[1747613966220,4.04138376,2474.4,2473.1,17.46]
[1747613966371,4.04334465,2473.2,2473.1,17.46]
[1747613966705,4.04416225,2472.7,2472.6,1.2501]
[1747613966903,4.04342609,2473.2,2472.4,12.018]
[1747613967210,4.04319123,2473.3,2472.4,12.018]
[1747613967376,4.04442384,2472.6,2472.4,12.018]
[1747613967577,12.04332726,2473.3,2472.3,12.018]
[1747613967775,6.5302,2474.1,2473.1,4.04336095]
[1747613968010,6.5302,2474.1,2473.2,12.018]
[1747613968183,4.04334465,2473.2,2473.1,12.018]
[1747613968371,4.04324996,2473.3,2473.1,12.018]
[1747613968906,4.04334465,2473.2,2473.1,12.018]
[1747613969105,4.04236397,2473.8,2473.1,12.018]
[1747613969306,4.04220057,2473.9,2473.1,12.018]
[1747613969307,4.04334465,2473.3,2473.1,12.018]
[1747613969608,4.04220057,2473.9,2473.1,12.018]
[1747613969907,4.04334465,2473.2,2473.1,12.018]
[1747613970314,16.0492155,2473.9,2473.1,12.018]
[1747613970488,4.04334465,2473.2,2473.1,12.018]
[1747613971074,12.04160431,2474.3,2473.1,12.018]
[1747613971271,4.04310219,2473.4,2473.1,12.018]
[1747613971484,0.4102,2474.1,2473.1,12.018]
[1747613971695,12.005,2474.0,2473.1,12.018]
[1747613972015,12.04220057,2473.9,2472.5,1.2501]
[1747613972185,4.04380254,2473.0,2472.6,12.569]
[1747613972383,4.04416225,2472.7,2472.5,1.2501]
[1747613972585,4.04380965,2473.0,2472.5,1.2501]
[1747613972809,4.04432581,2472.6,2472.5,1.2501]
[1747613973421,4.04448938,2472.5,2472.4,12.019]
[1747613973618,4.04367818,2473.0,2472.4,13.25193989]
[1747613973774,12.0,2473.4,2472.6,4.04431226]
[1747613973973,4.04252738,2473.7,2472.6,1.2359]
[1747613974213,4.0432659,2473.3,2472.7,4.04406457]
[1747613974407,4.04333038,2473.3,2472.7,4.04412247]
[1747613974615,4.04333038,2473.3,2472.8,4.04396178]
[1747613975000,4.04270254,2473.6,2472.9,4.04371643]
[1747613975316,4.04294269,2473.5,2473.0,0.04043241]
[1747613975474,4.04294269,2473.5,2473.1,12.02]
[1747613975675,4.04238921,2473.8,2473.1,12.02]
[1747613975879,4.04298387,2473.5,2473.1,12.02]
[1747613976102,0.4102,2474.0,2473.2,0.04043127]
[1747613976311,0.4102,2474.0,2471.8,12.0899]
[1747613976312,4.04311676,2473.4,2472.2,1.67761841]
[1747613976596,4.04448938,2472.5,2472.2,1.67761841]
[1747613976789,0.3087269,2473.2,2472.2,1.67761841]
[1747613976995,4.0441116,2472.8,2472.2,5.30438068]
[1747613977288,4.04419959,2472.7,2472.2,5.30438068]
[1747613977499,4.04419959,2472.7,2472.2,6.69145659]
[1747613977893,4.04447446,2472.6,2472.2,2.64657591]
[1747613978121,4.04456989,2472.5,2472.2,1.2595]
[1747613978890,4.043495,2473.2,2472.2,1.2595]
[1747613979119,4.04350814,2473.1,2472.2,1.2595]
[1747613979422,0.30693885,2473.2,2472.2,8.37840459]
[1747613979601,4.04414737,2472.8,2472.2,8.37834781]
[1747613979930,0.4102,2473.3,2472.3,4.04468043]
[1747613980135,4.04391198,2472.9,2472.4,4.04462075]
[1747613980440,4.04305421,2473.4,2472.9,4.04376007]
[1747613980619,4.04155162,2474.3,2473.0,12.57]
[1747613980821,0.4102,2474.4,2473.0,12.57]
[1747613981025,4.04267253,2473.7,2473.1,5.38763185]
[1747613981202,4.3783842,2474.3,2473.2,1.79576318]
[1747613981403,4.04221493,2473.9,2473.4,4.04292276]
[1747613981637,4.04182332,2474.2,2473.5,4.5927347]
[1747613981839,4.37830639,2474.3,2473.8,4.04228486]
[1747613982014,4.04171947,2474.2,2473.9,12.02]
[1747613982339,0.33671926,2474.3,2473.9,13.62624222]
[1747613982539,4.04203718,2474.0,2473.9,12.02]
[1747613982918,3.57812679,2475.7,2474.3,4.04150768]
[1747613983106,4.04100931,2474.7,2474.1,4.04175029]
[1747613983307,0.30579346,2475.5,2474.0,9.8846]
[1747613983507,0.30579346,2475.5,2474.2,0.55]
[1747613983744,0.30579346,2475.5,2474.3,12.018]
[1747613983940,4.04083146,2474.8,2474.3,12.018]
[1747613984128,2.57394052,2475.3,2474.4,0.59040811]
[1747613984443,2.57394052,2475.3,2474.4,0.55]
[1747613984643,4.04059364,2474.9,2474.4,0.55]
[1747613984839,2.54777268,2475.3,2474.4,0.55]
[1747613985039,4.04119237,2474.6,2474.3,12.018]
[1747613985608,4.04089384,2474.7,2474.3,12.018]
[1747613986153,4.0411001,2474.6,2474.3,12.018]
[1747613986351,4.04132335,2474.5,2474.3,12.018]
[1747613986734,4.04105516,2474.7,2474.3,12.018]
[1747613986922,4.04107955,2474.6,2474.3,12.018]
[1747613987110,4.04007756,2475.2,2474.3,12.018]
[1747613987525,4.04083285,2474.8,2474.3,16.0595065]
[1747613987726,4.03942478,2475.6,2474.4,18.74990824]
[1747613988044,4.0407894,2474.8,2474.4,18.7095]
[1747613988244,4.03998144,2475.3,2474.4,18.7095]
[1747613988453,4.03998144,2475.3,2474.5,12.016]
[1747613988454,4.04114577,2474.6,2474.5,12.016]
[1747613989274,4.03991435,2475.3,2474.5,12.014]
[1747613989458,4.04117698,2474.6,2474.5,12.014]
[1747613989960,4.03975115,2475.4,2474.5,12.014]
[1747613990167,4.04019679,2475.2,2474.5,12.014]
[1747613990335,4.04091645,2474.7,2474.5,12.014]
[1747613990531,4.04076272,2474.8,2474.5,12.014]
[1747613990725,4.04102416,2474.7,2474.5,12.014]
[1747613990926,4.04105714,2474.6,2474.5,12.014]
[1747613991264,4.04006148,2475.3,2474.5,12.014]
[1747613991570,4.04105714,2474.6,2474.5,12.014]
[1747613992260,4.04025494,2475.1,2474.5,12.014]
[1747613992462,4.04102075,2474.7,2474.5,12.014]
[1747613992673,4.04007756,2475.2,2474.5,12.014]
[1747613992874,4.75828577,2475.7,2474.6,0.59040833]
[1747613993050,4.04057645,2474.9,2474.6,0.55]
[1747613993251,4.04073056,2474.8,2474.7,12.013]
[1747613994744,4.04061401,2474.9,2474.7,12.013]
[1747613994940,4.04045638,2475.0,2474.7,12.013]
[1747613995144,4.04059638,2474.9,2474.7,12.013]
[1747613995552,4.44952603,2475.7,2474.8,0.55]
[1747613995749,4.04032175,2475.1,2474.8,1.66038047]
[1747613995948,4.04013119,2475.2,2474.8,1.66038047]
[1747613996676,4.04085751,2474.8,2474.6,11.948]
[1747613996840,4.04029864,2475.1,2474.6,15.98895436]
[1747613997563,4.040071,2475.3,2474.7,4.04081116]
[1747613997763,4.04017056,2475.2,2474.6,15.98891073]
[1747613997963,4.04049664,2475.0,2474.6,11.948]
[1747613998149,4.04092224,2474.7,2474.4,18.7095]
[1747613998341,12.03926162,2475.7,2474.5,11.947]
[1747613998547,4.04067107,2474.9,2474.5,11.947]
[1747613998743,4.04067107,2474.9,2474.4,20.63545]
[1747613998744,4.04048311,2475.0,2474.4,24.67679287]
[1747613998948,4.04076742,2474.8,2474.5,12.497]
[1747613999475,4.04076742,2474.8,2474.6,11.947]
[1747613999854,4.0399933,2475.3,2474.6,11.947]
[1747613999855,4.04065604,2474.9,2474.6,11.947]
[1747614000085,8.0,2475.7,2474.7,0.55]
[1747614000243,0.4116,2476.6,2475.0,0.55]
[1747614000444,0.4116,2476.6,2474.9,1.2718]
[1747614000445,4.03859426,2476.2,2475.2,0.55]
[1747614000646,4.03795679,2476.5,2475.4,0.55]
[1747614000844,4.03795679,2476.5,2474.9,1.2718]
[1747614000845,8.0,2476.4,2474.9,1.2718]
[1747614001042,4.04009798,2475.2,2475.0,11.947]
[1747614001255,4.04024079,2475.1,2475.0,11.947]
[1747614001682,4.04024079,2475.1,2474.9,1.2718]
[1747614001852,4.04024079,2475.1,2475.0,11.946]
[1747614002249,4.04089384,2474.7,2474.6,11.946]
[1747614002447,8.0,2475.3,2474.6,11.946]